bitfinex-derivatives/quotes_SOLF0:USTF0_20240910
["timestamp","ask_amount","ask_price","bid_price","bid_amount"]
[1725978659636,36.86,136.06,135.9,36.86]
[1725978659637,36.86,136.02,135.9,36.86]
[1725978659828,2.7229,136.01,135.9,36.86]
[1725978660033,4.0924,136.01,135.9,36.86]
[1725978660333,36.86,135.99,135.88,36.86]
[1725978660534,36.86,135.99,135.75,11.0491]
[1725978660535,36.86,135.97,135.86,36.86]
[1725978660727,4.0924,136.01,135.9,36.86]
[1725978660927,4.0924,136.01,135.92,36.86]
[1725978661129,2.7229,136.01,135.95,36.86]
[1725978661332,11.11810397,136.08,135.97,36.86]
[1725978661333,1.3695,136.07,135.97,36.86]
[1725978661534,3.9919,136.07,135.99,36.86]
[1725978661737,3.9919,136.07,135.99,40.5363]
[1725978661933,3.9919,136.07,135.97,36.86]
[1725978662842,3.9919,136.07,135.87,36.86]
[1725978662843,1.3481,136.07,136.01,36.86]
[1725978663032,36.86,136.12,136.01,36.86]
[1725978663230,36.86,136.12,135.94,40.50843979]
[1725978663231,1.3876,136.11,135.99,40.5364]
[1725978663535,2.7745,136.11,135.99,36.86]
[1725978663736,2.7745,136.11,136.0,3.6762]
[1725978664031,36.86,136.1,135.99,36.86]
[1725978664243,36.86,136.08,135.97,36.86]
[1725978665146,36.86,136.06,135.95,36.86]
[1725978665335,36.86,136.06,135.96,3.6773]
[1725978665530,36.86,136.08,135.95,36.86]
[1725978665836,36.86,136.08,135.97,40.537]
[1725978666133,36.86,136.08,135.97,36.86]
[1725978667135,36.86,136.08,135.94,36.86]
[1725978667439,36.86,136.05,135.94,36.86]
[1725978667639,36.86,136.03,135.92,36.86]
[1725978667829,2.6926,136.02,135.92,36.86]
[1725978668540,2.6926,136.02,135.94,36.86]
[1725978668737,2.6926,136.02,135.94,40.5376]
[1725978668936,2.6926,136.02,135.94,36.86]
[1725978669934,2.6926,136.02,135.92,36.86]
[1725978670135,36.86,136.01,135.92,36.86]
[1725978670330,36.86,136.01,135.89,36.86]
[1725978670538,36.86,135.99,135.87,36.86]
[1725978670731,36.86,136.01,135.92,3.6782]
[1725978671036,2.6926,136.02,135.91,36.86]
[1725978671243,2.6926,136.02,135.93,36.86]
[1725978672140,2.6926,136.02,135.91,36.86]
[1725978673149,2.6926,136.02,135.93,36.86]
[1725978673335,2.6926,136.02,135.95,36.86]
[1725978673336,1.3876,136.02,135.95,36.86]
[1725978673543,1.3876,136.02,135.96,3.6772]
[1725978673735,1.3876,136.02,135.95,36.86]
[1725978674247,1.3876,136.02,135.93,36.86]
[1725978674941,38.2476,136.02,135.87,36.86]
[1725978675146,36.86,135.97,135.87,36.86]
[1725978676137,1.2777,135.96,135.87,36.86]
[1725978676338,1.2777,135.96,135.85,40.5401]
[1725978676640,1.3965,135.95,135.85,36.86]
[1725978676843,1.3965,135.95,135.87,36.86]
[1725978677444,1.3965,135.95,135.85,36.86]
[1725978678046,1.3965,135.95,135.87,36.86]
[1725978678245,36.86,136.02,135.9,36.86]
[1725978678746,36.86,135.99,135.9,36.86]
[1725978678940,1.2851,135.98,135.9,36.86]
[1725978679140,36.86,135.97,135.85,36.86]
[1725978679348,1.2658,135.96,135.85,36.86]
[1725978679744,1.2658,135.96,135.87,3.6796]
[1725978679944,1.2658,135.96,135.85,36.86]
[1725978681443,1.2658,135.96,135.87,3.6796]
[1725978681646,1.2658,135.96,135.85,36.86]
[1725978681853,36.86,135.95,135.85,36.86]
[1725978682047,36.86,135.95,135.83,36.86]
[1725978682754,36.86,135.95,135.83,40.5408]
[1725978682948,1.2658,135.96,135.81,36.86]
[1725978682949,36.86,135.93,135.81,36.86]
[1725978683251,36.86,135.93,135.81,40.5411]
[1725978683757,36.86,135.95,135.79,36.86]
[1725978683758,36.86,135.91,135.79,36.86]
[1725978683939,36.86,135.91,135.78,3.6821]
[1725978683940,36.86,135.88,135.77,36.86]
[1725978684148,36.86,135.86,135.75,36.86]
[1725978684747,36.86,135.86,135.75,40.543]
[1725978684962,36.86,135.84,135.75,36.86]
[1725978685152,2.6767,135.83,135.75,36.86]
[1725978685351,2.6767,135.83,135.72,36.86]
[1725978685749,36.86,135.82,135.72,36.86]
[1725978685952,1.3759,135.83,135.75,36.86]
[1725978686155,1.3759,135.83,135.72,3.76455416]
[1725978686349,1.3759,135.83,135.76,36.86]
[1725978686746,1.3759,135.83,135.74,36.86]
[1725978687049,1.3759,135.83,135.71,36.86]
[1725978687050,36.86,135.82,135.71,36.86]
[1725978687255,36.86,135.79,135.69,36.86]
[1725978687453,36.86,135.79,135.56,7.3759]
[1725978687454,36.86,135.77,135.67,36.86]
[1725978687659,1.2916,135.76,135.67,36.86]
[1725978688362,1.2916,135.76,135.69,36.86]
[1725978688848,1.2916,135.76,135.67,40.5451]
[1725978689251,1.2916,135.76,135.65,36.86]
[1725978689658,36.86,135.75,135.65,36.86]
[1725978691155,36.86,135.75,135.66,3.6853]
[1725978691555,1.2916,135.76,135.68,3.6849]
[1725978691861,1.2916,135.76,135.65,36.86]
[1725978692062,1.2916,135.76,135.67,3.685]
[1725978692352,1.2916,135.76,135.65,36.86]
[1725978692660,1.2916,135.76,135.67,40.5449]
[1725978692960,1.2916,135.76,135.67,36.86]
[1725978693760,1.2916,135.76,135.68,3.6848]
[1725978694161,1.2916,135.76,135.67,36.86]
[1725978694353,1.2916,135.76,135.69,3.6844]
[1725978694553,1.2916,135.76,135.69,36.86]
[1725978694753,36.86,135.75,135.65,36.86]
[1725978695452,36.86,135.75,135.65,40.5457]
[1725978696255,36.86,135.75,135.66,3.6854]
[1725978696464,36.86,135.71,135.6,36.86]
[1725978696960,1.3613,135.7,135.6,36.86]
[1725978697157,1.3399,135.69,135.6,36.86]
[1725978697352,1.3399,135.69,135.53,36.86]
[1725978697353,1.3399,135.69,135.58,40.5474]
[1725978697555,1.3399,135.69,135.58,36.86]
[1725978698463,1.3399,135.69,135.59,3.6871]
[1725978698761,1.3399,135.69,135.58,36.86]
[1725978698960,36.86,135.68,135.58,36.86]
[1725978699461,36.86,135.68,135.56,36.86]
[1725978699659,36.86,135.66,135.56,36.86]
[1725978700056,39.5349,135.69,135.58,40.5476]
[1725978700261,39.5349,135.69,135.58,36.86]
[1725978700663,36.86,135.67,135.58,36.86]
[1725978701649,39.5349,135.69,135.59,3.6873]
[1725978701849,39.5349,135.69,135.58,36.86]
[1725978702250,39.5349,135.69,135.6,36.86]
[1725978702452,2.6749,135.69,135.6,36.86]
[1725978703467,2.6749,135.69,135.58,36.86]
[1725978703960,36.86,135.68,135.58,36.86]
[1725978704164,36.86,135.65,135.42,7.3836]
[1725978704472,36.86,135.65,135.52,36.86]
[1725978704665,40.5140767,135.65,135.52,36.86]
[1725978704866,40.5140767,135.65,135.53,3.6887]
[1725978705066,36.86,135.65,135.52,36.86]
[1725978705562,36.86,135.65,135.55,36.86]
[1725978706065,36.86,135.65,135.57,3.6879]
[1725978706266,36.86,135.65,135.55,36.86]
[1725978706861,36.86,135.65,135.53,36.86]
[1725978707057,36.86,135.63,135.53,36.86]
[1725978707262,36.86,135.61,135.5,36.86]
[1725978707565,36.86,135.61,135.53,3.6889]
[1725978707763,36.86,135.61,135.5,36.86]
[1725978708267,36.86,135.61,135.53,3.6889]
[1725978708563,36.86,135.61,135.5,36.86]
[1725978708763,36.86,135.59,135.49,3.6899]
[1725978709067,36.86,135.59,135.48,36.86]
[1725978709269,36.86,135.59,135.5,3.6897]
[1725978709565,36.86,135.59,135.48,36.86]
[1725978709766,36.86,135.59,135.48,40.5502]
[1725978709967,36.86,135.59,135.46,36.86]
[1725978710467,36.86,135.59,135.48,3.6903]
[1725978710766,36.86,135.59,135.48,36.86]
[1725978711362,38.1481,135.61,135.46,3.71668742]
[1725978711560,38.1481,135.61,135.41,7.3842]
[1725978711561,38.1481,135.61,135.48,36.86]
[1725978711758,38.1481,135.61,135.49,3.73310764]
[1725978712065,38.1481,135.61,135.48,36.86]
[1725978712257,1.2881,135.61,135.51,36.86]
[1725978712464,2.6645,135.62,135.53,36.86]
[1725978712959,2.6645,135.62,135.54,3.6887]
[1725978713160,2.6645,135.62,135.53,36.86]
[1725978713360,36.86,135.61,135.51,36.86]
[1725978713564,36.86,135.61,135.48,36.86]
[1725978714163,36.86,135.61,135.51,3.6895]
[1725978714360,36.86,135.59,135.48,36.86]
[1725978715169,36.86,135.59,135.49,3.6899]
[1725978715366,36.86,135.59,135.46,36.86]
[1725978715573,1.2861,135.58,135.46,40.4901279]
[1725978715866,39.5245,135.62,135.51,36.86]
[1725978716670,39.5245,135.62,135.51,40.5494]
[1725978717865,39.5245,135.62,135.47,36.86]
[1725978717866,36.86,135.58,135.47,36.86]
[1725978718171,1.3831,135.57,135.47,36.86]
[1725978718374,36.86,135.56,135.44,36.86]
[1725978718570,1.2892,135.55,135.44,36.86]
[1725978718963,2.6694,135.55,135.44,36.86]
[1725978719167,36.86,135.53,135.42,36.86]
[1725978720665,36.86,135.53,135.45,3.6912]
[1725978720972,36.86,135.53,135.42,36.86]
[1725978721165,36.86,135.51,135.41,3.692]
[1725978721371,36.86,135.51,135.4,36.86]
[1725978721565,36.86,135.54,135.42,36.86]
[1725978721772,36.86,135.54,135.45,3.6911]
[1725978721971,36.86,135.54,135.4,40.55773921]
[1725978722173,36.86,135.52,135.4,40.55773921]
[1725978722370,36.86,135.52,135.44,3.6913]
[1725978722567,36.86,135.52,135.4,40.55773921]
[1725978723478,36.86,135.47,135.37,40.57509602]
[1725978723778,36.86,135.45,135.35,36.86]
[1725978723974,36.86,135.45,135.26,266.54259816]
[1725978723975,36.86,135.45,135.34,3.6941]
[1725978724173,2.6871,135.44,135.33,36.86]
[1725978724377,2.6871,135.44,135.33,40.53742805]
[1725978724631,2.6871,135.44,135.35,36.86]
[1725978726072,2.6871,135.44,135.33,36.86]
[1725978726272,36.86,135.43,135.31,36.86]
[1725978726775,36.86,135.43,135.33,3.6944]
[1725978727182,1.3472,135.46,135.35,36.86]
[1725978727681,1.3472,135.46,135.38,36.86]
[1725978731382,1.3472,135.46,135.35,36.86]
[1725978731383,38.2072,135.46,135.35,36.86]
[1725978731592,1.2844,135.45,135.35,36.86]
[1725978731781,1.3472,135.46,135.37,36.86]
[1725978732084,1.3472,135.46,135.4,36.86]
[1725978732783,1.3654,135.5,135.4,36.86]
[1725978732981,1.3654,135.5,135.42,36.86]
[1725978733276,2.7361,135.53,135.42,36.86]
[1725978733485,36.86,135.51,135.4,36.86]
[1725978733882,36.86,135.51,135.38,36.86]
[1725978733883,36.86,135.49,135.38,36.86]
[1725978734193,36.86,135.51,135.4,36.86]
[1725978734687,36.86,135.51,135.42,3.6918]
[1725978734879,36.86,135.51,135.4,36.86]
[1725978735077,36.86,135.49,135.38,36.86]
[1725978735289,1.3654,135.52,135.43,3.6916]
[1725978735290,36.86,135.51,135.43,3.6916]
[1725978735490,36.86,135.51,135.4,36.86]
[1725978735491,1.3654,135.52,135.42,36.86]
[1725978735687,1.3654,135.52,135.42,40.5517]
[1725978735988,1.3654,135.52,135.42,36.86]
[1725978736285,1.3654,135.52,135.44,36.86]
[1725978736485,1.3654,135.52,135.42,36.86]
[1725978737079,36.86,135.51,135.4,36.86]
[1725978737389,36.86,135.51,135.41,3.6921]
[1725978737589,36.86,135.51,135.4,36.86]
[1725978737789,36.86,135.49,135.38,40.553]
[1725978737986,36.86,135.47,135.36,36.86]
[1725978738289,1.2868,135.46,135.36,36.86]
[1725978738593,1.3654,135.52,135.41,36.86]
[1725978738791,1.3658,135.51,135.41,36.86]
[1725978739393,1.3658,135.51,135.43,36.86]
[1725978740095,1.3658,135.51,135.45,3.691]
[1725978740295,1.3658,135.51,135.43,36.86]
[1725978740594,1.3658,135.51,135.45,3.6911]
[1725978740796,1.3658,135.51,135.43,36.86]
[1725978741093,38.2258,135.51,135.4,36.86]
[1725978741285,38.2258,135.51,135.41,3.6922]
[1725978741997,38.2258,135.51,135.4,36.86]
[1725978742296,38.2258,135.51,135.41,3.6921]
[1725978742492,38.2258,135.51,135.4,36.86]
[1725978742697,36.86,135.49,135.37,36.86]
[1725978742896,36.86,135.49,135.38,3.6929]
[1725978743084,36.86,135.49,135.37,36.86]
[1725978743388,36.86,135.47,135.35,36.86]
[1725978743596,36.86,135.47,135.37,3.6931]
[1725978743998,36.86,135.47,135.35,36.86]
[1725978744396,12.36537234,135.51,135.33,36.86]
[1725978744397,36.86,135.45,135.33,36.86]
[1725978744616,3.9221,135.44,135.33,36.86]
[1725978744793,3.9221,135.44,135.35,36.86]
[1725978745096,3.9221,135.44,135.38,3.693]
[1725978745400,3.9221,135.44,135.31,36.86]
[1725978745593,3.9221,135.44,135.31,3.6948]
[1725978745594,36.86,135.42,135.31,3.6948]
[1725978745794,36.86,135.4,135.29,36.86]
[1725978745993,36.86,135.4,135.27,36.86]
[1725978746492,36.86,135.4,135.29,36.86]
[1725978746896,36.86,135.4,135.31,3.695]
[1725978747100,36.86,135.4,135.29,36.86]
[1725978748804,7.39,135.43,135.32,36.86]
[1725978748805,36.86,135.42,135.32,36.86]
[1725978749496,40.7821,135.44,135.32,36.86]
[1725978750091,3.9221,135.44,135.36,22.7]
[1725978750589,3.9221,135.44,135.38,3.6929]
[1725978750790,3.9221,135.44,135.36,22.7]
[1725978750990,3.9221,135.44,135.38,3.693]
[1725978751799,3.9221,135.44,135.36,22.7]
[1725978752201,3.9221,135.44,135.35,36.89]
[1725978752401,40.8121,135.44,135.33,36.89]
[1725978752700,44.52847599,135.44,135.33,40.5844]
[1725978752900,36.89,135.42,135.33,3.6944]
[1725978753097,36.89,135.42,135.3,36.89]
[1725978753600,40.8121,135.44,135.33,36.89]
[1725978753800,3.9221,135.44,135.35,36.89]
[1725978754196,1.3425,135.44,135.39,36.89]
[1725978754404,9.9573,135.5,135.41,3.6921]
[1725978754708,1.3935,135.48,135.39,36.89]
[1725978755910,1.3935,135.48,135.37,36.89]
[1725978755911,36.89,135.47,135.37,36.89]
[1725978756700,36.89,135.47,135.38,3.693]
[1725978756904,36.89,135.47,135.37,36.89]
[1725978757102,36.89,135.45,135.35,36.89]
[1725978757302,36.89,135.45,135.33,36.89]
[1725978757803,36.89,135.45,135.24,11.09401369]
[1725978757804,36.89,135.41,135.31,36.89]
[1725978758001,4.0104,135.4,135.31,36.89]
[1725978758607,2.7465,135.4,135.31,36.89]
[1725978758799,2.7465,135.4,135.33,36.89]
[1725978759199,2.7465,135.4,135.36,3.6934]
[1725978759505,1.2639,135.43,135.35,36.89]
[1725978759903,36.89,135.42,135.3,36.89]
[1725978760104,38.2396,135.42,135.3,36.89]
[1725978760712,36.89,135.4,135.28,36.89]
[1725978761013,36.89,135.35,135.26,36.89]
[1725978761206,1.3172,135.34,135.26,36.89]
[1725978761399,1.3172,135.34,135.28,3.6956]
[1725978762113,1.3172,135.34,135.26,40.61717547]
[1725978762415,36.89,135.4,135.32,3.6945]
[1725978762611,36.89,135.4,135.3,36.89]
[1725978763004,36.89,135.4,135.33,3.6943]
[1725978763309,36.89,135.4,135.3,36.89]
[1725978763513,36.89,135.4,135.31,3.6949]
[1725978763713,36.89,135.4,135.3,36.89]
[1725978764307,36.89,135.4,135.28,36.89]
[1725978764818,36.89,135.4,135.32,3.6945]
[1725978765010,36.89,135.4,135.28,36.89]
[1725978765422,36.89,135.38,135.28,36.89]
[1725978765907,36.89,135.38,135.3,3.6952]
[1725978766103,36.89,135.36,135.26,36.89]
[1725978766309,2.6704,135.35,135.26,36.89]
[1725978766512,2.6704,135.35,135.24,36.89]
[1725978766711,1.3015,135.34,135.24,36.89]
[1725978767116,1.3015,135.34,135.26,3.6961]
[1725978767311,1.3015,135.34,135.24,36.89]
[1725978767611,36.89,135.33,135.22,36.89]
[1725978768715,36.89,135.33,135.25,3.6966]
[1725978769013,36.89,135.33,135.22,36.89]
[1725978770114,36.89,135.33,135.24,3.6968]
[1725978770708,36.89,135.31,135.22,3.6973]
[1725978770909,36.89,135.31,135.19,36.89]
[1725978771215,36.89,135.31,135.22,3.6974]
[1725978771515,36.89,135.31,135.19,40.56973553]
[1725978771814,45.5815,135.34,135.22,36.89]
[1725978772019,45.5815,135.34,135.24,36.89]
[1725978772720,45.5815,135.34,135.25,3.6965]
[1725978772916,45.5815,135.34,135.22,36.89]
[1725978773218,45.5815,135.34,135.27,3.6959]
[1725978773425,8.6915,135.34,135.24,36.89]
[1725978774118,8.6915,135.34,135.24,3.63119243]
[1725978774324,1.3015,135.34,135.23,22.71]
[1725978774517,1.3015,135.34,135.24,3.79058177]
[1725978774726,1.3015,135.34,135.26,22.71]
[1725978775017,1.3015,135.34,135.28,22.71]
[1725978775212,7.39,135.38,135.28,22.71]
[1725978775418,7.39,135.39,135.33,3.6943]
[1725978775612,7.39,135.39,135.28,22.71]
[1725978775820,7.39,135.39,135.28,26.49910252]
[1725978776024,2.7567,135.4,135.28,26.49910252]
[1725978776224,2.7567,135.4,135.31,22.71]
[1725978776924,2.7567,135.4,135.28,26.49910252]
[1725978777315,2.7567,135.4,135.28,22.71]
[1725978777521,22.71,135.39,135.28,22.71]
[1725978777723,22.71,135.39,135.28,26.38893841]
[1725978778219,2.7567,135.4,135.28,22.71]
[1725978778525,1.3602,135.4,135.34,22.71]
[1725978778720,1.3602,135.4,135.36,3.6935]
[1725978778915,1.3602,135.4,135.34,22.71]
[1725978779825,1.3602,135.4,135.31,22.71]
[1725978780626,1.3602,135.4,135.28,22.71]
[1725978780814,2.632,135.4,135.28,22.71]
[1725978781222,2.632,135.4,135.28,26.38896101]
[1725978781721,2.632,135.4,135.33,3.6942]
[1725978781929,22.71,135.39,135.28,22.71]
[1725978782226,22.71,135.37,135.25,22.71]
[1725978782530,1.3322,135.36,135.25,22.71]
[1725978782717,1.3322,135.36,135.28,3.6957]
[1725978783416,1.3322,135.36,135.27,3.6959]
[1725978783623,1.3322,135.36,135.25,22.71]
[1725978784433,1.3322,135.36,135.26,3.6962]
[1725978784731,1.3322,135.36,135.23,22.71]
[1725978784732,22.71,135.34,135.23,22.71]
[1725978784923,22.71,135.32,135.2,22.71]
[1725978785325,2.7012,135.33,135.2,22.71]
[1725978785525,2.7012,135.33,135.25,22.71]
[1725978785723,1.319,135.33,135.25,26.31829697]
[1725978785938,22.71,135.38,135.27,22.71]
[1725978786230,22.71,135.38,135.32,3.6945]
[1725978786434,22.71,135.38,135.27,22.71]
[1725978786933,2.6591,135.39,135.29,22.71]
[1725978787232,2.6591,135.39,135.31,3.6948]
[1725978787419,2.6591,135.39,135.26,22.71]
[1725978787823,22.71,135.38,135.26,22.71]
[1725978788331,2.6591,135.39,135.31,22.71]
[1725978788526,228.0,135.47,135.26,22.71]
[1725978788527,7.39,135.44,135.33,22.71]
[1725978788727,7.39,135.44,135.34,3.6585133]
[1725978788924,7.39,135.44,135.33,22.71]
[1725978789233,30.1,135.44,135.35,3.6939]
[1725978789534,2.6174,135.43,135.33,22.71]
[1725978789737,22.71,135.42,135.32,3.6946]
[1725978790036,22.71,135.4,135.29,22.71]
[1725978790330,22.71,135.4,135.24,3.61268024]
[1725978790331,22.71,135.37,135.27,22.71]
[1725978790534,22.71,135.37,135.25,22.71]
[1725978790832,2.6079,135.36,135.28,3.6956]
[1725978791026,2.6079,135.36,135.27,22.71]
[1725978791525,2.6079,135.36,135.29,3.6954]
[1725978791722,2.6079,135.36,135.27,22.71]
[1725978792331,22.71,135.35,135.24,22.71]
[1725978792528,22.71,135.35,135.26,3.6962]
[1725978792735,22.71,135.33,135.22,22.71]
[1725978792935,1.269,135.32,135.22,22.71]
[1725978793623,1.269,135.32,135.24,22.71]
[1725978795138,7.39,135.37,135.33,3.6943]
[1725978795328,1.3218,135.39,135.29,22.71]
[1725978795735,1.3218,135.39,135.31,22.71]
[1725978796127,1.3218,135.39,135.31,36.91]
[1725978796734,1.3218,135.39,135.29,36.91]
[1725978797232,1.3218,135.39,135.27,36.91]
[1725978798131,36.91,135.38,135.28,3.6957]
[1725978798323,36.91,135.38,135.27,36.91]
[1725978798722,36.91,135.38,135.29,3.6953]
[1725978798940,36.91,135.38,135.27,36.91]
[1725978799229,36.91,135.38,135.3,3.6952]
[1725978799534,36.91,135.38,135.27,36.91]
[1725978799836,36.91,135.38,135.29,3.6954]
[1725978800335,36.91,135.38,135.27,36.91]
[1725978800938,1.3218,135.39,135.32,3.6947]
[1725978801241,1.3218,135.39,135.29,36.91]
[1725978802330,1.3218,135.39,135.32,36.91]
[1725978802733,1.286,135.43,135.34,36.91]
[1725978803237,1.2845,135.42,135.34,36.91]
[1725978804740,1.2845,135.42,135.38,3.693]
[1725978804938,1.2845,135.42,135.34,36.91]
[1725978805829,1.2845,135.42,135.38,3.6931]
[1725978806033,1.2845,135.42,135.34,36.91]
[1725978806239,7.39,135.46,135.36,36.91]
[1725978806432,1.2825,135.49,135.34,36.91]
[1725978806433,1.3373,135.48,135.39,36.91]
[1725978807034,1.3373,135.48,135.41,3.6921]
[1725978807230,1.3373,135.48,135.39,36.91]
[1725978808539,36.91,135.47,135.36,36.91]
[1725978808739,36.91,135.47,135.34,36.91]
[1725978808940,36.91,135.47,135.38,3.6929]
[1725978809139,36.91,135.47,135.34,36.91]
[1725978809443,1.3373,135.48,135.38,36.91]
[1725978809642,1.3373,135.48,135.41,3.692]
[1725978809941,1.3373,135.48,135.38,36.91]
[1725978810153,1.3373,135.48,135.39,3.6927]
[1725978810440,1.3373,135.48,135.38,36.91]
[1725978810641,1.3373,135.48,135.42,3.6919]
[1725978810834,1.3373,135.48,135.38,36.91]
[1725978811038,1.3373,135.48,135.38,40.51150709]
[1725978811341,1.3373,135.48,135.38,36.91]
[1725978811554,36.91,135.45,135.34,36.91]
[1725978811936,36.91,135.47,135.34,36.91]
[1725978812333,36.91,135.47,135.38,3.6929]
[1725978812544,36.91,135.47,135.34,36.91]
[1725978812747,36.91,135.45,135.37,3.6932]
[1725978813049,36.91,135.47,135.34,36.91]
[1725978813348,36.91,135.47,135.39,3.6926]
[1725978813541,36.91,135.47,135.36,36.91]
[1725978813741,36.91,135.47,135.34,36.91]
[1725978813944,36.91,135.47,135.4,3.6924]
[1725978814439,36.91,135.47,135.39,3.6926]
[1725978815040,36.91,135.47,135.36,36.91]
[1725978815747,1.3373,135.48,135.39,36.91]
[1725978816247,36.91,135.47,135.37,36.91]
[1725978816446,36.91,135.45,135.33,36.91]
[1725978816741,36.91,135.45,135.37,3.6933]
[1725978817542,36.91,135.45,135.33,36.91]
[1725978817746,36.91,135.47,135.33,36.91]
[1725978817747,44.3,135.43,135.33,36.91]
[1725978817946,1.3583,135.42,135.33,36.91]
[1725978818147,1.3583,135.42,135.36,3.6936]
[1725978818342,1.3583,135.42,135.35,22.7]
[1725978818943,7.39,135.45,135.35,22.7]
[1725978819848,22.7,135.44,135.33,22.7]
[1725978821848,22.7,135.42,135.31,26.45331957]
[1725978822149,1.2925,135.41,135.31,22.7]
[1725978822350,1.2925,135.41,135.24,3.74214533]
[1725978822351,30.09,135.4,135.29,22.7]
[1725978822555,31.4849,135.4,135.29,22.7]
[1725978822849,30.09,135.38,135.27,26.396]
[1725978823255,22.7,135.36,135.25,22.7]
[1725978824660,22.7,135.36,135.28,3.6957]
[1725978825154,26.40397674,135.36,135.25,22.7]
[1725978825349,22.7,135.36,135.25,22.7]
[1725978825552,26.33042207,135.36,135.25,22.7]
[1725978825752,22.7,135.36,135.25,22.7]
[1725978825952,26.32779869,135.36,135.25,22.7]
[1725978826952,22.7,135.36,135.25,22.7]
[1725978827951,3.61190027,135.37,135.25,22.7]
[1725978828157,22.7,135.36,135.26,3.6962]
[1725978828363,22.7,135.34,135.22,22.7]
[1725978828553,4.0251,135.33,135.22,22.7]
[1725978828961,22.7,135.31,135.2,26.36891334]
[1725978829157,22.7,135.31,135.2,22.7]
[1725978829761,22.7,135.31,135.24,3.6967]
[1725978829958,34.1151,135.33,135.22,22.7]
[1725978830164,11.4151,135.33,135.24,22.7]
[1725978830753,11.4151,135.33,135.29,3.6953]
[1725978831653,11.4151,135.33,135.28,3.6957]
[1725978832251,11.4151,135.33,135.29,3.6954]
[1725978832457,4.0251,135.33,135.26,22.7]
[1725978833761,4.0251,135.33,135.19,26.42438527]
[1725978833762,4.0251,135.33,135.24,22.7]
[1725978833967,4.0251,135.33,135.24,26.3967]
[1725978834262,4.0251,135.33,135.24,22.7]
[1725978834856,4.0251,135.33,135.27,3.6958]
[1725978835262,4.0251,135.33,135.25,3.6965]
[1725978835855,4.0251,135.33,135.26,3.6963]
[1725978836159,4.0251,135.33,135.24,22.7]
[1725978836356,4.0251,135.33,135.19,26.42438527]
[1725978836357,4.0251,135.33,135.25,3.6965]
[1725978836554,4.0251,135.33,135.22,22.7]
[1725978836555,26.7251,135.33,135.22,22.7]
[1725978836957,26.7251,135.33,135.24,3.6968]